fUSD/lending_fUSD_20250811
["ID","MTS","AMOUNT","RATE_DAILY","PERIOD"]
[378466311,1754877034962,-530.12,0.00018857,2]
[378466312,1754877034972,-575.47,0.00018857,2]
[378466313,1754877034982,-400.0,0.00018857,2]
[378466314,1754877034993,-913.27,0.00018857,2]
[378466315,1754877035003,-419.31,0.00018857,2]
[378466316,1754877035013,-601.02,0.00018857,2]
[378466317,1754877035023,-873.93,0.00018857,2]
[378466318,1754877035033,-400.0,0.00018857,2]
[378466319,1754877035042,-814.23,0.00018857,2]
[378466320,1754877035053,-400.0,0.00018857,2]
[378466321,1754877035062,-475.22,0.00018857,2]
[378466322,1754877035072,-400.0,0.00018857,2]
[378466323,1754877035082,-983.82,0.00018857,2]
[378466324,1754877035092,-400.0,0.00018857,2]
[378466325,1754877035101,-400.0,0.00018857,2]
[378466326,1754877035112,-400.0,0.00018857,2]
[378466327,1754877035122,-400.0,0.00018857,2]
[378466328,1754877035132,-400.0,0.00018857,2]
[378466329,1754877035142,-400.0,0.00018857,2]
[378466330,1754877035159,-554.95,0.00018857,2]
[378466331,1754877035169,-400.0,0.00018857,2]
[378466332,1754877035179,-400.0,0.00018857,2]
[378466333,1754877035189,-1039.43,0.00018857,2]
[378466334,1754877035198,-526.72,0.00018857,2]
[378466335,1754877035207,-400.0,0.00018857,2]
[378466336,1754877035216,-1082.22,0.00018857,2]
[378466337,1754877035226,-422.39933007,0.00018857,2]
[378466338,1754877035235,-400.0,0.00018857,2]
[378466339,1754877035245,-400.0,0.00018857,2]
[378466340,1754877035254,-1229.74,0.00018857,2]
[378466341,1754877035263,-2320.36,0.00018857,2]
[378466342,1754877035273,-292.57926604,0.00018857,2]
[378466343,1754877036128,-178.53073396,0.00018857,2]
[378466344,1754877036139,-657.28,0.00018857,2]
[378466345,1754877036149,-400.74,0.00018857,2]
[378466346,1754877036159,-400.0,0.00018857,2]
[378466347,1754877036169,-470.1,0.00018857,2]
[378466348,1754877036179,-400.0,0.00018857,2]
[378466349,1754877036189,-487.61,0.00018857,2]
[378466350,1754877036198,-535.64,0.00018857,2]
[378466351,1754877036208,-455.45,0.00018857,2]
[378466352,1754877036217,-717.75,0.00018857,2]
[378466353,1754877036227,-400.0,0.00018857,2]
[378466354,1754877036236,-792.17,0.00018857,2]
[378466355,1754877036246,-1089.06,0.00018857,2]
[378466356,1754877036255,-400.0,0.00018857,2]
[378466357,1754877036265,-400.0,0.00018857,2]
[378466358,1754877036275,-902.46,0.00018857,2]
[378466359,1754877036284,-991.55,0.00018857,2]
[378466360,1754877036293,-258.52870765,0.00018857,2]
[378466361,1754877036302,-400.0,0.00018857,2]
[378466362,1754877036314,-400.0,0.00018857,2]
[378466363,1754877036324,-1136.33,0.00018857,2]
[378466364,1754877036334,-429.12,0.00018857,2]
[378466365,1754877036344,-1074.53,0.00018857,2]
[378466366,1754877036353,-400.0,0.00018857,2]
[378466367,1754877036363,-400.0,0.00018857,2]
[378466368,1754877036373,-400.0,0.00018857,2]
[378466369,1754877036382,-400.0,0.00018857,2]
[378466370,1754877036392,-400.0,0.00018857,2]
[378466371,1754877036401,-1353.05,0.00018857,2]
[378466372,1754877036411,-400.0,0.00018857,2]
[378466373,1754877036421,-1030.4,0.00018857,2]
[378466374,1754877036430,-400.0,0.00018857,2]
[378466375,1754877036440,-400.0,0.00018857,2]
[378466376,1754877036449,-400.0,0.00018857,2]
[378466377,1754877036459,-487.75,0.00018857,2]
[378466378,1754877036468,-407.3118488,0.00018857,2]
[378466379,1754877036477,-1146.26,0.00018857,2]
[378466380,1754877036486,-509.77994402,0.00018857,2]
[378466381,1754877036499,-255.17005598,0.00018857,2]
[378466382,1754877036508,-1522.24,0.00018857,2]
[378466383,1754877036519,-32.70270906,0.00018857,2]
[378466384,1754877036556,-709.04729094,0.00018857,2]
[378466385,1754877036565,-408.78,0.00018857,2]
[378466386,1754877036575,-400.0,0.00018857,2]
[378466387,1754877036585,-400.0,0.00018857,2]
[378466388,1754877036594,-1109.29,0.00018857,2]
[378466389,1754877036603,-423.90117808,0.00018857,2]
[378466390,1754877036613,-1251.55,0.00018857,2]
[378466391,1754877036622,-447.45,0.00018857,2]
[378466392,1754877036632,-443.02,0.00018857,2]
[378466393,1754877036641,-428.74,0.00018857,2]
[378466394,1754877036651,-1257.03,0.00018857,2]
[378466395,1754877036660,-96.90794958,0.00018857,2]
[378466396,1754877036684,-303.09205042,0.00018857,2]
[378466397,1754877036694,-250.30415504,0.00018857,2]
[378466398,1754877036703,-670.8,0.00018857,2]
[378466399,1754877036713,-400.0,0.00018857,2]
[378466400,1754877036722,-400.0,0.00018857,2]
[378466401,1754877036734,-1194.12,0.00018857,2]
[378466402,1754877036743,-903.97,0.00018857,2]
[378466403,1754877036752,-384.62666256,0.00018857,2]
[378466405,1754877038043,-1094.14333744,0.00018857,2]
[378466406,1754877038053,-400.0,0.00018857,2]
[378466407,1754877038062,-400.0,0.00018857,2]
[378466408,1754877038072,-589.66,0.00018857,2]
[378466409,1754877038081,-509.17,0.00018857,2]
[378466410,1754877038091,-400.0,0.00018857,2]
[378466411,1754877038100,-2258.06,0.00018857,2]
[378466412,1754877038110,-831.58,0.00018857,2]
[378466413,1754877038120,-400.0,0.00018857,2]
[378466414,1754877038129,-982.36,0.00018857,2]
[378466415,1754877038138,-400.0,0.00018857,2]
[378466416,1754877038147,-404.92770064,0.00018857,2]
[378466417,1754877038158,-400.0,0.00018857,2]
[378466418,1754877038167,-598.35,0.00018857,2]
[378466419,1754877038176,-904.25,0.00018857,2]
[378466420,1754877038186,-570.05,0.00018857,2]
[378466421,1754877038195,-985.6,0.00018857,2]
[378466422,1754877038204,-400.0,0.00018857,2]
[378466423,1754877038213,-600.23,0.00018857,2]
[378466424,1754877038222,-1358.32,0.00018857,2]
[378466425,1754877038231,-714.32,0.00018857,2]
[378466426,1754877038240,-903.71,0.00018857,2]
[378466427,1754877038251,-400.0,0.00018857,2]
[378466428,1754877038261,-400.0,0.00018857,2]
[378466429,1754877038271,-478.04054663,0.00018857,2]
[378466430,1754877038281,-400.0,0.00018857,2]
[378466431,1754877038292,-1022.95,0.00018857,2]
[378466432,1754877038304,-672.31,0.00018857,2]
[378466433,1754877038313,-489.33,0.00018857,2]
[378466434,1754877038323,-617.17,0.00018857,2]
[378466435,1754877038332,-411.47,0.00018857,2]
[378466436,1754877038341,-778.41,0.00018857,2]
[378466437,1754877038350,-1776.87,0.00018857,2]
[378466438,1754877038359,-400.47,0.00018857,2]
[378466439,1754877038368,-690.74,0.00018857,2]
[378466440,1754877038378,-400.0,0.00018857,2]
[378466441,1754877038387,-400.0,0.00018857,2]
[378466442,1754877038397,-400.0,0.00018857,2]
[378466444,1754877038407,-534.55,0.00018857,2]
[378466446,1754877038417,-400.0,0.00018857,2]
[378466448,1754877038426,-400.0,0.00018857,2]
[378466450,1754877038436,-405.47,0.00018857,2]
[378466452,1754877038446,-528.63,0.00018857,2]
[378466453,1754877038455,-400.0,0.00018857,2]
[378466454,1754877038464,-474.28,0.00018857,2]
[378466456,1754877038473,-914.45,0.00018857,2]
[378466458,1754877038483,-400.0,0.00018857,2]
[378466460,1754877038492,-1103.01,0.00018857,2]
[378466462,1754877038501,-400.0,0.00018857,2]
[378466464,1754877038511,-920.64,0.00018857,2]
[378466466,1754877038520,-857.5,0.00018857,2]
[378466468,1754877038530,-1455.91,0.00018857,2]
[378466470,1754877038539,-429.98,0.00018857,2]
[378466472,1754877038548,-749.03,0.00018857,2]
[378466474,1754877038557,-400.0,0.00018857,2]
[378466476,1754877038566,-1554.57,0.00018857,2]
[378466478,1754877038575,-761.6,0.00018857,2]
[378466480,1754877038584,-400.0,0.00018857,2]
[378466482,1754877038594,-400.0,0.00018857,2]
[378466484,1754877038604,-400.0,0.00018857,2]
[378466486,1754877038613,-405.2,0.00018857,2]
[378466488,1754877038622,-2141.96,0.00018857,2]
[378466490,1754877038632,-1667.18,0.00018857,2]
[378466492,1754877038641,-400.0,0.00018857,2]
[378466494,1754877038649,-409.0,0.00018857,2]
[378466496,1754877038659,-400.0,0.00018857,2]
[378466497,1754877038668,-400.0,0.00018857,2]
[378466499,1754877038677,-403.71,0.00018857,2]
[378466501,1754877038686,-400.0,0.00018857,2]
[378466503,1754877038695,-1029.74,0.00018857,2]
[378466505,1754877038704,-1286.59,0.00018857,2]
[378466507,1754877038713,-561.19,0.00018857,2]
[378466509,1754877038722,-518.10506722,0.00018857,2]
[378466510,1754877038731,-579.33,0.00018857,2]
[378466511,1754877038740,-300.0,0.00018857,2]
[378466512,1754877038749,-1633.96,0.00018857,2]
[378466513,1754877038761,-400.0,0.00018857,2]
[378466514,1754877038770,-1537.47,0.00018857,2]
[378466515,1754877038779,-583.72,0.00018857,2]
[378466516,1754877038788,-1678.08,0.00018857,2]
[378466517,1754877038799,-400.0,0.00018857,2]
[378466518,1754877038808,-400.0,0.00018857,2]
[378466519,1754877038818,-400.0,0.00018857,2]
[378466520,1754877038828,-509.32,0.00018857,2]
[378466521,1754877038843,-656.75834807,0.00018857,2]
[378466522,1754877038881,-820.68165193,0.00018857,2]
[378466523,1754877038890,-1740.86,0.00018857,2]
[378466524,1754877038900,-500.0,0.00018857,2]
[378466525,1754877038909,-580.12,0.00018857,2]
[378466526,1754877038918,-573.5,0.00018857,2]
[378466527,1754877038928,-400.0,0.00018857,2]
[378466529,1754877038937,-505.65559178,0.00018857,2]
[378466531,1754877038946,-400.0,0.00018857,2]
[378466533,1754877038956,-796.53,0.00018857,2]
[378466535,1754877038965,-432.24,0.00018857,2]
[378466537,1754877038976,-2555.8,0.00018857,2]
[378466539,1754877038986,-1416.61,0.00018857,2]
[378466541,1754877038995,-643.72,0.00018857,2]
[378466543,1754877039004,-404.94,0.00018857,2]
[378466545,1754877039013,-754.31,0.00018857,2]
[378466547,1754877039022,-2833.07,0.00018857,2]
[378466549,1754877039031,-1011.12,0.00018857,2]
[378466551,1754877039040,-400.0,0.00018857,2]
[378466553,1754877039050,-3667.25,0.00018857,2]
[378466555,1754877039059,-400.0,0.00018857,2]
[378466557,1754877039068,-1717.39,0.00018857,2]
[378466559,1754877039078,-486.72,0.00018857,2]
[378466561,1754877039090,-400.0,0.00018857,2]
[378466563,1754877039099,-400.0,0.00018857,2]
[378466565,1754877039108,-567.38,0.00018857,2]
[378466567,1754877039117,-1557.86,0.00018857,2]
[378466569,1754877039127,-413.88,0.00018857,2]
[378466571,1754877039136,-400.0,0.00018857,2]
[378466573,1754877039145,-400.0,0.00018857,2]
[378466575,1754877039155,-690.22,0.00018857,2]
[378466577,1754877039165,-643.15,0.00018857,2]
[378466579,1754877039173,-400.0,0.00018857,2]
[378466581,1754877039183,-400.0,0.00018857,2]
[378466583,1754877039192,-525.77,0.00018857,2]
[378466585,1754877039201,-1163.79,0.00018857,2]
[378466587,1754877039210,-497.91,0.00018857,2]
[378466589,1754877039219,-1662.18,0.00018857,2]
[378466591,1754877039228,-400.0,0.00018857,2]
[378466592,1754877039237,-474.29,0.00018857,2]
[378466594,1754877039246,-400.0,0.00018857,2]
[378466596,1754877039256,-982.28,0.00018857,2]
[378466598,1754877039265,-1408.68,0.00018857,2]
[378466600,1754877039274,-400.0,0.00018857,2]
[378466602,1754877039283,-1271.84,0.00018857,2]
[378466604,1754877039292,-1008.36,0.00018857,2]
[378466606,1754877039301,-1823.03,0.00018857,2]
[378466607,1754877039312,-1858.79,0.00018857,2]
[378466609,1754877039321,-475.44,0.00018857,2]
[378466611,1754877039330,-400.0,0.00018857,2]
[378466613,1754877039339,-400.0,0.00018857,2]
[378466614,1754877039348,-461.74986842,0.00018857,2]
[378466616,1754877039358,-400.0,0.00018857,2]
[378466618,1754877039367,-522.04,0.00018857,2]
[378466620,1754877039376,-400.0,0.00018857,2]
[378466622,1754877039385,-400.0,0.00018857,2]
[378466623,1754877039395,-2506.46,0.00018857,2]
[378466626,1754877039405,-1306.69,0.00018857,2]
[378466627,1754877039414,-400.0,0.00018857,2]
[378466630,1754877039424,-408.10117175,0.00018857,2]
[378466632,1754877039433,-440.52,0.00018857,2]
[378466634,1754877039443,-400.0,0.00018857,2]
[378466636,1754877039453,-1021.32,0.00018857,2]
[378466638,1754877039462,-400.0,0.00018857,2]
[378466640,1754877039471,-946.62,0.00018857,2]
[378466668,1754877039742,-1038.26,0.00018857,2]
[378466670,1754877039754,-1505.55,0.00018857,2]
[378466672,1754877039763,-479.05,0.00018857,2]
[378466674,1754877039772,-538.99,0.00018857,2]
[378466676,1754877039782,-536.53,0.00018857,2]
[378466678,1754877039790,-400.0,0.00018857,2]
[378466680,1754877039800,-844.4,0.00018857,2]
[378466683,1754877039809,-740.86,0.00018857,2]
[378466685,1754877039818,-1179.11,0.00018857,2]
[378466687,1754877039828,-1225.75,0.00018857,2]
[378466690,1754877039838,-400.0,0.00018857,2]
[378466692,1754877039847,-874.74,0.00018857,2]
[378466694,1754877039856,-495.41,0.00018857,2]
[378466696,1754877039866,-331.94971612,0.00018857,2]
[378466698,1754877039878,-417.68286157,0.00018857,2]
[378466701,1754877039890,-340.78742231,0.00018857,2]
[378466702,1754877039900,-2805.93,0.00018857,2]
[378466704,1754877039909,-879.44550112,0.00018857,2]
[378466707,1754877039921,-2859.94449888,0.00018857,2]
[378466709,1754877039930,-400.0,0.00018857,2]
[378466711,1754877039939,-2476.63,0.00018857,2]
[378466714,1754877039948,-1154.33187192,0.00018857,2]
[378466716,1754877039960,-15.68812808,0.00018857,2]
[378466718,1754877039970,-400.0,0.00018857,2]
[378466720,1754877039980,-400.0,0.00018857,2]
[378466722,1754877039990,-400.0,0.00018857,2]
[378466724,1754877039999,-1258.76,0.00018857,2]
[378466726,1754877040008,-400.0,0.00018857,2]
[378466728,1754877040017,-1929.94,0.00018857,2]
[378466730,1754877040026,-754.96,0.00018857,2]
[378466732,1754877040035,-3042.07,0.00018857,2]
[378466734,1754877040045,-400.0,0.00018857,2]
[378466736,1754877040054,-922.66,0.00018857,2]
[378466738,1754877040063,-888.62,0.00018857,2]
[378466740,1754877040072,-400.0,0.00018857,2]
[378466742,1754877040082,-474.9,0.00018857,2]
[378466744,1754877040091,-912.18,0.00018857,2]
[378466746,1754877040101,-917.24,0.00018857,2]
[378466748,1754877040110,-779.71,0.00018857,2]
[378466750,1754877040119,-1018.82,0.00018857,2]
[378466752,1754877040128,-400.0,0.00018857,2]
[378466754,1754877040137,-389.06561074,0.00018857,2]
[378466756,1754877040147,-400.0,0.00018857,2]
[378466758,1754877040156,-400.0,0.00018857,2]
[378466760,1754877040165,-2269.66,0.00018857,2]
[378466761,1754877040175,-400.0,0.00018857,2]
[378466763,1754877040184,-1165.58,0.00018857,2]
[378466766,1754877040194,-404.55267925,0.00018857,2]
[378466767,1754877040203,-400.0,0.00018857,2]
[378466769,1754877040213,-605.97,0.00018857,2]
[378466772,1754877040223,-521.99,0.00018857,2]
[378466774,1754877040232,-400.0,0.00018857,2]
[378466776,1754877040242,-400.0,0.00018857,2]
[378466778,1754877040251,-471.03,0.00018857,2]
[378466780,1754877040261,-400.0,0.00018857,2]
[378466782,1754877040270,-400.0,0.00018857,2]
[378466784,1754877040279,-400.0,0.00018857,2]
[378466785,1754877040288,-400.0,0.00018857,2]
[378466787,1754877040297,-1845.83,0.00018857,2]
[378466789,1754877040307,-400.0,0.00018857,2]
[378466791,1754877040316,-402.12992213,0.00018857,2]
[378466793,1754877040326,-2428.15,0.00018857,2]
[378466795,1754877040335,-1164.09,0.00018857,2]
[378466797,1754877040344,-400.0,0.00018857,2]
[378466799,1754877040353,-507.21,0.00018857,2]
[378466801,1754877040363,-400.0,0.00018857,2]
[378466803,1754877040372,-400.0,0.00018857,2]
[378466805,1754877040381,-1822.96,0.00018857,2]
[378466807,1754877040391,-400.0,0.00018857,2]
[378466809,1754877040400,-400.0,0.00018857,2]
[378466811,1754877040410,-400.0,0.00018857,2]
[378466813,1754877040421,-504.70732103,0.00018857,2]
[378466815,1754877040431,-402.2882913,0.00018857,2]
[378466817,1754877040442,-966.27,0.00018857,2]
[378466819,1754877040451,-400.0,0.00018857,2]
[378466821,1754877040460,-400.0,0.00018857,2]
[378466823,1754877040470,-400.0,0.00018857,2]
[378466825,1754877040480,-1329.29,0.00018857,2]
[378466827,1754877040489,-281.3538812,0.00018857,2]
[378466830,1754877040502,-825.3561188,0.00018857,2]
[378466832,1754877040511,-745.6,0.00018857,2]
[378466834,1754877040521,-1113.81040565,0.00018857,2]
[378466891,1754877041062,-555.46959435,0.00018857,2]
[378466893,1754877041071,-400.0,0.00018857,2]
[378466895,1754877041081,-400.0,0.00018857,2]
[378466897,1754877041090,-401.80697678,0.00018858,2]
[378466900,1754877041100,-291.68625523,0.00018858,2]
[378466902,1754877041109,-500.0,0.00018858,2]
[378466903,1754877041118,-1135.67,0.00018858,2]
[378466905,1754877041128,-400.0,0.00018858,2]
[378466907,1754877041138,-400.0,0.00018858,2]
[378466910,1754877041147,-562.56,0.00018858,2]
[378466911,1754877041157,-400.0,0.00018858,2]
[378466913,1754877041166,-776.38,0.00018858,2]
[378466915,1754877041176,-400.0,0.00018858,2]
[378466917,1754877041185,-400.0,0.00018858,2]
[378466920,1754877041195,-400.0,0.00018858,2]
[378466921,1754877041204,-400.0,0.00018858,2]
[378466923,1754877041214,-400.0,0.00018858,2]
[378466925,1754877041223,-400.0,0.00018858,2]
[378466927,1754877041233,-627.07,0.00018858,2]
[378466929,1754877041242,-1148.41,0.00018858,2]
[378466931,1754877041251,-961.86,0.00018858,2]
[378466933,1754877041260,-834.06,0.00018858,2]
[378466935,1754877041269,-400.0,0.00018858,2]
[378466937,1754877041278,-400.0,0.00018858,2]
[378466939,1754877041287,-555.43,0.00018858,2]
[378466941,1754877041296,-448.63,0.00018858,2]
[378466943,1754877041306,-400.0,0.00018858,2]
[378466946,1754877041316,-1691.73,0.00018858,2]
[378466948,1754877041326,-884.2,0.00018858,2]
[378466949,1754877041335,-1090.0,0.00018858,2]
[378466951,1754877041344,-400.0,0.00018858,2]
[378466953,1754877041353,-840.97,0.00018858,2]
[378466955,1754877041363,-400.0,0.00018858,2]
[378466957,1754877041372,-598.75,0.00018858,2]
[378466959,1754877041382,-714.46,0.00018858,2]
[378466961,1754877041392,-1285.39,0.00018858,2]
[378466963,1754877041401,-448.03,0.00018858,2]
[378466965,1754877041411,-421.2,0.00018858,2]
[378466967,1754877041420,-499.04,0.00018858,2]
[378466969,1754877041429,-617.22,0.00018858,2]
[378466971,1754877041438,-671.08,0.00018858,2]
[378466973,1754877041447,-400.0,0.00018858,2]
[378466975,1754877041457,-1368.24,0.00018858,2]
[378466977,1754877041467,-400.0,0.00018858,2]
[378466979,1754877041477,-1103.07,0.00018858,2]
[378466981,1754877041486,-400.0,0.00018858,2]
[378466983,1754877041495,-400.0,0.00018858,2]
[378466985,1754877041505,-888.42,0.00018858,2]
[378466987,1754877041514,-1382.91,0.00018858,2]
[378466989,1754877041523,-1588.55,0.00018858,2]
[378466991,1754877041532,-1014.2,0.00018858,2]
[378466993,1754877041542,-923.33,0.00018858,2]
[378466995,1754877041551,-469.43,0.00018858,2]
[378466997,1754877041560,-485.64,0.00018858,2]
[378466999,1754877041569,-429.85,0.00018858,2]
[378467001,1754877041578,-1885.5,0.00018858,2]
[378467003,1754877041588,-679.7,0.00018858,2]
[378467005,1754877041597,-492.42,0.00018858,2]
[378467008,1754877041608,-948.18,0.00018858,2]
[378467010,1754877041617,-1775.83,0.00018858,2]
[378467012,1754877041626,-1574.92,0.00018858,2]
[378467013,1754877041635,-470.34,0.00018858,2]
[378467016,1754877041644,-492.46,0.00018858,2]
[378467018,1754877041654,-484.37,0.00018858,2]
[378467019,1754877041664,-510.22,0.00018858,2]
[378467021,1754877041673,-400.0,0.00018858,2]
[378467023,1754877041682,-606.58,0.00018858,2]
[378467025,1754877041691,-1281.28,0.00018858,2]
[378467027,1754877041701,-1561.66,0.00018858,2]
[378467029,1754877041710,-1980.63,0.00018858,2]
[378467032,1754877041720,-400.0,0.00018858,2]
[378467033,1754877041729,-1370.74,0.00018858,2]
[378467036,1754877041739,-500.0,0.00018858,2]
[378467038,1754877041747,-400.0,0.00018858,2]
[378467040,1754877041758,-1494.13,0.00018858,2]
[378467042,1754877041769,-1175.9,0.00018858,2]
[378467044,1754877041779,-1566.01,0.00018858,2]
[378467045,1754877041788,-783.33,0.00018858,2]
[378467047,1754877041797,-150.0,0.00018858,2]
[378467049,1754877041806,-2739.13,0.00018858,2]
[378467051,1754877041816,-645.33,0.00018858,2]
[378467054,1754877041825,-580.69,0.00018858,2]
[378467055,1754877041835,-610.16,0.00018858,2]
[378467058,1754877041844,-1008.42,0.00018858,2]
[378467059,1754877041854,-695.58,0.00018858,2]
[378467061,1754877041863,-1212.06,0.00018858,2]
[378467064,1754877041873,-446.51,0.00018858,2]
[378467065,1754877041882,-4729.23,0.00018858,2]
[378467067,1754877041891,-1077.34,0.00018858,2]
[378467069,1754877041900,-910.92,0.00018858,2]
[378467071,1754877041910,-2660.52,0.00018858,2]
[378467073,1754877041919,-1700.11,0.00018858,2]
[378467075,1754877041928,-2838.87,0.00018858,2]
[378467077,1754877041937,-13084.73,0.00018858,2]
[378467079,1754877041947,-1772.87,0.00018858,2]
[378467081,1754877041956,-601.59,0.00018858,2]
[378467083,1754877041966,-2294.73,0.00018858,2]
[378467085,1754877041975,-400.0,0.00018858,2]
[378467087,1754877041984,-1601.92,0.00018858,2]
[378467089,1754877041994,-686.32,0.00018858,2]
[378467091,1754877042003,-874.46,0.00018858,2]
[378467093,1754877042013,-1876.14,0.00018858,2]
[378467095,1754877042023,-981.99,0.00018858,2]
[378467097,1754877042032,-400.0,0.00018858,2]
[378467099,1754877042042,-584.5,0.00018858,2]
[378467101,1754877042052,-446.27,0.00018858,2]
[378467103,1754877042061,-400.0,0.00018858,2]
[378467105,1754877042070,-692.23,0.00018858,2]
[378467107,1754877042079,-763.79,0.00018858,2]
[378467109,1754877042089,-2113.7,0.00018858,2]
[378467111,1754877042098,-623.3,0.00018858,2]
[378467113,1754877042107,-1647.55,0.00018858,2]
[378467115,1754877042118,-446.25,0.00018858,2]
[378467117,1754877042126,-1002.74,0.00018858,2]
[378467119,1754877042136,-400.0,0.00018859,2]
[378467121,1754877042145,-400.0,0.00018859,2]
[378467123,1754877042154,-400.0,0.00018859,2]
[378467125,1754877042163,-400.0,0.00018859,2]
[378467127,1754877042172,-400.0,0.00018859,2]
[378467129,1754877042181,-276.35459457,0.00018859,2]
[378467131,1754877042190,-400.0,0.00018859,2]
[378467133,1754877042199,-400.0,0.00018859,2]
[378467135,1754877042208,-400.0,0.00018859,2]
[378467137,1754877042217,-400.0,0.00018859,2]
[378467139,1754877042226,-597.32,0.00018859,2]
[378467141,1754877042235,-400.0,0.00018859,2]
[378467143,1754877042244,-400.0,0.00018859,2]
[378467145,1754877042253,-400.0,0.00018859,2]
[378467147,1754877042263,-400.0,0.00018859,2]
[378467149,1754877042272,-386.62266124,0.00018859,2]
[378467151,1754877042281,-400.0,0.00018859,2]
[378467153,1754877042290,-454.33,0.00018859,2]
[378467155,1754877042299,-400.0,0.00018859,2]
[378467157,1754877042309,-400.0,0.00018859,2]
[378467159,1754877042318,-400.0,0.00018859,2]
[378467161,1754877042327,-400.0,0.00018859,2]
[378467163,1754877042336,-400.0,0.00018859,2]
[378467165,1754877042346,-421.3,0.00018859,2]
[378467167,1754877042355,-404.63611332,0.00018859,2]
[378467169,1754877042366,-400.0,0.00018859,2]
[378467171,1754877042376,-400.0,0.00018859,2]
[378467173,1754877042386,-400.0,0.00018859,2]
[378467175,1754877042395,-400.0,0.00018859,2]
[378467177,1754877042404,-400.0,0.00018859,2]
[378467179,1754877042413,-400.0,0.00018859,2]
[378467181,1754877042422,-417.06818287,0.00018859,2]
[378467183,1754877042431,-400.0,0.00018859,2]
[378467185,1754877042440,-249.88484331,0.00018868,2]
[378467187,1754877042450,-204.09463654,0.00018873,2]
[378467189,1754877042459,-500.0,0.00018873,2]
[378467191,1754877042468,-502.628276,0.00018873,2]
[378467193,1754877042477,-500.0,0.00018873,2]
[378467195,1754877042485,-500.0,0.00018873,2]
[378467197,1754877042494,-393.5000789,0.00018873,2]
[378467198,1754877042504,-500.0,0.00018873,2]
[378467200,1754877042513,-219.59816759,0.00018873,2]
[378467202,1754877042522,-500.0,0.00018873,2]
[378467204,1754877042531,-500.0,0.00018873,2]
[378467206,1754877042541,-500.0,0.00018873,2]
[378467208,1754877042550,-500.0,0.00018873,2]
[378467210,1754877042559,-500.88059016,0.00018873,2]
[378467212,1754877042568,-500.0,0.00018873,2]
[378467214,1754877042577,-500.0,0.00018873,2]
[378467216,1754877042586,-523.80283548,0.00018873,2]
[378467218,1754877042595,-320.08914235,0.00018873,2]
[378467219,1754877042605,-500.0,0.00018873,2]
[378467220,1754877042614,-500.0,0.00018873,2]
[378467221,1754877042623,-842.72722232,0.00018881,2]
[378467222,1754877042633,-211.70500488,0.00018881,2]
[378467223,1754877042642,-457.79793389,0.00018881,2]
[378467224,1754877042650,-400.0,0.00018883,2]
[378467225,1754877042662,-249.88484331,0.00018884,2]
[378467226,1754877042671,-150.0,0.00018894,2]
[378467227,1754877042680,-2000.0,0.000189,2]
[378467228,1754877042690,-171.22050146,0.000189,2]
[378467229,1754877042699,-100000.0,0.000189,2]